Cogmind - Beta 14 @@@ ROGUE MODE // 2024.08.26 @ 15:56:57 Player: Some Pennies Result: Destroyed by as-67787 with Assembled Rifle Performance ------------- Evolutions (0) 0 Regions Visited (2) 400 Robots Destroyed (45) 225 Value Destroyed (1020) 1020 Prototype IDs (2) 40 Alien Tech Used (0) 0 Bonus (0) 0 TOTAL SCORE: 1685 Bonus ------- None Cogmind --------- Core Integrity 0/250 Matter 113/300 Energy 229/250 System Corruption 1% Temperature Cool (0) Movement Treading (240) Ox1 Location -10/Mines Parts ------- > --- POWER (1) -------- Ion Engine > --- PROPULSION (2) --- Light Treads Light Treads > --- UTILITY (2) ------ Improved Heat Sink High-capacity Storage Unit > --- WEAPON (2) ------- Beam Cannon Rocket Launcher > --- INVENTORY (20) --- Ion Engine Light Nuclear Core Light Treads Light Treads Improved Heat Sink Medium Storage Unit Structural Scanner Machine Analyzer Improved Terrain Scanner Seismic Detector Transport Network Coupler Recalibrator Beam Cannon Beam Cannon Beam Cannon Assault Rifle Light Assault Rifle Datajack Mining Laser Peak State ------------ > --- POWER ------------ Ion Engine > --- PROPULSION ------- Light Treads Light Treads > --- UTILITY ---------- Improved Heat Sink High-capacity Storage Unit > --- WEAPON ----------- Beam Cannon Rocket Launcher > --- INVENTORY -------- Ion Engine Light Nuclear Core Light Treads Light Treads Light Treads Improved Heat Sink Medium Storage Unit Structural Scanner Machine Analyzer Improved Terrain Scanner Seismic Detector Transport Network Coupler Recalibrator Beam Cannon Beam Cannon Beam Cannon Assault Rifle Light Assault Rifle Datajack Mining Laser [Rating: 13] Favorites ----------- Power Ion Engine Engine Ion Engine Propulsion Light Treads Treads Light Treads Leg Aluminum Leg Utility High-capacity Storage Unit Device Improved Heat Sink Storage High-capacity Storage Unit Weapon Beam Cannon Energy Cannon Beam Cannon Ballistic Gun Assault Rifle Launcher Rocket Launcher Special Weapon Mining Laser Build | -11 -10 -10 ------- Run | Yrd Mat Min Slots Evolved . | . . . Power . | . . . Propulsion . | . . . Utility . | . . . Weapon . | . . . Parts Attached 33 | 7 18 8 Power 3 | 1 2 . Engine 3 | 1 2 . Core . | . . . Reactor . | . . . Propulsion 9 | 2 5 2 Treads 7 | 2 3 2 Leg 2 | . 2 . Wheel . | . . . Hover . | . . . Flight . | . . . Utility 8 | 2 6 . Device 5 | 1 4 . Storage 3 | 1 2 . Processor . | . . . Hackware . | . . . Protection . | . . . Artifact . | . . . Weapon 13 | 2 5 6 Energy Gun . | . . . Energy Cannon 7 | . 4 3 Ballistic Gun 2 | 2 . . Ballistic Cannon . | . . . Launcher 3 | . . 3 Special Weapon 1 | . 1 . Impact Weapon . | . . . Slashing Weapon . | . . . Piercing Weapon . | . . . Special Melee Weapon . | . . . Unidentified Prototypes . | . . . Parts Lost 3 | . 1 2 Power . | . . . Propulsion 2 | . 1 1 Utility . | . . . Weapon 1 | . . 1 Highest Loss Streak 1 | . 1 1 To Critical Strikes 1 | . . 1 Average Slot Usage (%) 100 | . 100 100 Engine 14 | . 14 14 Treads 28 | . 28 28 Device 14 | . 14 14 Storage 14 | . 14 14 Energy Cannon 22 | . 21 27 Ballistic Gun 4 | . 4 . Special Weapon 1 | . 1 . Peak Build Rating 13 | 7 11 13 Average Rating 10 | 5 10 11 On Entrance 6 | . 7 11 Naked Turns . | . . . Heaviest Build 53 | 15 52 53 Greatest Support 40 | 40 40 40 Greatest Overweight (x) 17 | 1 17 1 Average Overweight (x) 1 | . 1 1 Largest Inventory Capacity 20 | 8 20 20 Average Capacity 18 | 7 18 20 Most Carried 20 | 6 20 20 Average Carried 17 | 3 16 19 Final Capacity 20 | 8 20 20 Final Carried 20 | 6 20 19 Class Distribution -------------------- 100% | Mutant Dominant Class ---------------- Mutant | -10/Materials Mutant | -10/Mines Resources | -11 -10 -10 ----------- Run | Yrd Mat Min Matter Collected 850 | 297 493 60 Remotely . | . . . Salvage Created 1695 | 100 1192 403 Parts 111 | 7 83 21 Haulers Intercepted 2 | . 2 . Recyclers Shooed 3 | . 3 . Parts Field Recycled . | . . . Retrieved Matter . | . . . Parts Self-Destructed . | . . . Prevented . | . . . Kills | -11 -10 -10 ------- Run | Yrd Mat Min Combat Hostiles Destroyed 45 | . 21 24 Guns 15 | . 15 . Cannons 12 | . 6 6 AOE 18 | . . 18 Classes Destroyed 10 | 2 7 1 Worker 2 | . 2 . Tunneler 2 | 2 . . Hauler 2 | . 2 . Recycler 4 | 1 2 1 Mechanic 1 | . 1 . Operator 1 | . 1 . Watcher 3 | . 3 . Swarmer 9 | . 6 3 Grunt 21 | . 15 6 Assembled 15 | . . 15 Best Kill Streak 18 | 2 8 18 Combat Bots Only 18 | . 7 18 Max Kills in Single Turn 5 | 1 2 5 Gunslinging 1 | . 1 . Exploded 5 | . . 5 Melee . | . . . Uniques/NPCs Destroyed . | . . . Combat | -11 -10 -10 -------- Run | Yrd Mat Min Hostile Shots Fired 167 | . 97 70 Missed 43 | . 24 19 Damage Taken 1413 | . 773 640 Core 257 | . 135 122 Absorbed by Shields . | . . . Core Remaining (%) 100 | 100 . . Volleys Fired 128 | 5 91 32 Largest 2 | 2 2 2 Hottest 120 | 40 120 120 Shots Fired 242 | 10 180 52 Gun 124 | 10 114 . Cannon 104 | . 64 40 Launcher 12 | . . 12 Special 2 | . 2 . Kinetic 124 | 10 114 . Thermal 106 | . 66 40 Explosive 12 | . . 12 Electromagnetic . | . . . Robot Hit Streak 11 | 3 11 9 Robot Miss Streak 5 | 1 5 4 Penetration Max . | . . . Secondary Targets 3 | . 3 . Max Gunslinging Chain 1 | . 1 . Shots Hit Robots 139 | 6 108 25 Core Hits 93 | 4 46 43 Critical Kills . | . . . Critical Parts Destroyed . | . . . Critical Strikes . | . . . Melee Attacks . | . . . Impact . | . . . Slashing . | . . . Piercing . | . . . Sneak Attacks . | . . . Combat Hostiles . | . . . Follow-up Attacks . | . . . Damage Inflicted 3438 | 72 1610 1756 Guns 1013 | 72 941 . Cannons 1135 | . 660 475 Explosions 1269 | . . 1269 Melee . | . . . Ramming 21 | . 9 12 Kinetic 1013 | 72 941 . Thermal 1135 | . 660 475 Explosive 1269 | . . 1269 Electromagnetic . | . . . Impact . | . . . Slashing . | . . . Piercing . | . . . Highest Corruption 1 | . 1 1 Average Corruption 1 | . 1 1 Corruption Purged . | . . . Corruption Blocked . | . . . Effects 15 | . 10 5 Message Errors 4 | . 1 3 Matter Fused 3 | . 3 . Heat Flow Errors 3 | . 2 1 Energy Discharges 3 | . 3 . Data Loss (major) 1 | . 1 . Alerts 1 | . . 1 Overload Shots . | . . . Overflow Damage 16 | . . 16 Projectiles . | . . . Explosions 16 | . . 16 Melee . | . . . Knockbacks . | . . . Impact . | . . . Kinetic . | . . . Secondary . | . . . Self-Inflicted Damage . | . . . Shots . | . . . Rammed 4 | . 3 1 Targets Rammed 4 | . 3 1 Kicked . | . . . Crushed . | . . . Highest Temperature 296 | . 296 237 Average Temperature 84 | . 80 90 Received Heat Transfer 519 | . 327 192 Siege Activations . | . . . Robots Corrupted . | . . . Combat Hostiles . | . . . Parts Fried . | . . . Impact Corruptions . | . . . Robots Melted . | . . . Combat Hostiles . | . . . Parts Melted 3 | . 2 1 Heat Transferred 2405 | . 1406 999 Parts Sabotaged . | . . . Parts Stolen . | . . . Parts Stripped . | . . . Power Chain Reactions . | . . . Alert | -11 -10 -10 ------- Run | Yrd Mat Min Peak Influence 351 | 15 351 193 Initial 12 | . 9 12 Average 118 | 5 128 73 Maximum Alert Level 1 | . 1 . Low Security (%) 79 | 100 75 100 Level 1 20 | . 24 . Level 2 . | . . . Level 3 . | . . . Level 4 . | . . . Level 5 . | . . . High Security . | . . . Max Security . | . . . Squads Dispatched 5 | . 5 . Investigation 4 | . 4 . Extermination . | . . . Reinforcement 1 | . 1 . Assault . | . . . Garrison . | . . . Intercept . | . . . Searches Triggered . | . . . Construction Impeded . | . . . Haulers Reinforced . | . . . Active Scanning Responses . | . . . Cargo Convoy Interrupts . | . . . Stealth | -11 -10 -10 --------- Run | Yrd Mat Min Distress Signals 4 | . 4 . Communications Jammed . | . . . Distress Signals . | . . . Times Spotted 64 | . 34 30 Peak Tracking Total 18 | . 5 18 Tactical Retreats 3 | . 1 2 Traps | -11 -10 -10 ------- Run | Yrd Mat Min Traps Triggered 1 | . 1 . Indirectly . | . . . Trap Hack Attempts . | . . . Triggered . | . . . Disarmed . | . . . Reprogrammed . | . . . Reused . | . . . Traps Extracted . | . . . Installed . | . . . Triggered . | . . . Machines | -11 -10 -10 ---------- Run | Yrd Mat Min Machines Disabled 4 | . 3 1 Max in Single Turn 1 | . 1 1 Machines Repaired . | . . . Machines Dismantled . | . . . Machines Sabotaged . | . . . Overloaded Fab Kills . | . . . Hacking | -11 -10 -10 --------- Run | Yrd Mat Min Machines Accessed 12 | . 11 1 Terminals 9 | . 8 1 Fabricators . | . . . Repair Stations 1 | . 1 . Recycling Units 2 | . 2 . Scanalyzers . | . . . Garrison Access . | . . . Total Hacks 33 | . 30 3 Successful 17 | . 16 1 Failed 16 | . 14 2 Catastrophic 2 | . 2 . Database Lockouts . | . . . Manual 21 | . 18 3 Terminals 23 | . 20 3 Fabricators . | . . . Repair Stations 3 | . 3 . Recycling Units 7 | . 7 . Scanalyzers . | . . . Garrison Access . | . . . Terminal Hacks 7 | . 6 1 Robot Analysis 2 | . 1 1 Prototype ID Bank 1 | . 1 . Terminal Index 1 | . 1 . Locate Traps 2 | . 2 . Zone Layout 1 | . 1 . Fabricator Hacks . | . . . Repair Station Hacks 1 | . 1 . Scan Component 1 | . 1 . Recycling Unit Hacks 1 | . 1 . Retrieve Components 1 | . 1 . Scanalyzer . | . . . Garrison Access Hacks . | . . . Unauthorized Hacks 8 | . 8 . Terminals 6 | . 6 . Skim 6 | . 6 . Fabricators . | . . . Repair Stations . | . . . Recycling Units 2 | . 2 . Tunnel 2 | . 2 . Scanalyzers . | . . . Garrison Access . | . . . Data Cores Recovered . | . . . Used . | . . . Hacking Detections 11 | . 10 1 Full Trace Events 2 | . 2 . Feedback Events 1 | . 1 . Corruption 1 | . 1 . Feedback Blocked . | . . . Robot Schematics Acquired . | . . . Robots Built . | . . . Authchips . | . . . Time . | . . . Total Robot Build Rating . | . . . Part Schematics Acquired . | . . . Parts Built . | . . . Authchips . | . . . Time . | . . . Total Part Build Rating . | . . . Parts Repaired . | . . . Time . | . . . Parts Recycled . | . . . Recycled Matter . | . . . Retrieved Matter . | . . . Retrieved Components 9 | . 9 . Parts Scanalyzed . | . . . Part Schematics Acquired . | . . . Parts Damaged . | . . . Bothacking | -11 -10 -10 ------------ Run | Yrd Mat Min Used RIF Installer . | . . . Robots Hacked . | . . . Non-combat . | . . . Combat . | . . . Robot Hacks Applied . | . . . Relay Couplers Released . | . . . Fabnet Peak Effective % . | . . . Robots Rewired . | . . . Allies Hacked . | . . . Hacks Repelled . | . . . Allies | -11 -10 -10 -------- Run | Yrd Mat Min Total Allies . | . . . Largest Group . | . . . Highest-Rated Group . | . . . Highest-Rated Ally . | . . . Total Orders . | . . . Ally Attacks . | . . . Total Damage . | . . . Kills . | . . . Allies Corrupted . | . . . Allies Melted . | . . . Intel | -11 -10 -10 ------- Run | Yrd Mat Min Robot Analysis Total 2 | . 1 1 Derelict Logs Recovered 1 | . . 1 Drone Launches . | . . . Drone Recoveries . | . . . Exploration | -11 -10 -10 ------------- Run | Yrd Mat Min Turns Passed 5407 | 114 4539 754 Spaces Moved 1958 | 61 1625 272 Core 46 | 14 32 . Treads 1912 | 47 1593 272 Legs . | . . . Wheels . | . . . Hover . | . . . Flight . | . . . Fastest Speed 50 | 50 160 240 Average Speed 232 | 136 234 240 Slowest Speed 900 | 160 900 240 Overloaded Moves . | . . . Propulsion Burnouts . | . . . Robots Hopped . | . . . Cave-ins Triggered . | . . . Exploration Rate (%) 56 | 6 99 65 Regions Visited 2 Branch Regions 1 Pre-discovered Areas 4 | . 4 . Known Exits Taken . | . . . Unknown Exits Taken 2 | 1 1 . Scrap Searched 1 | . . 1 Spaces Dug 17 | . 1 16 Terrain Destroyed 109 | . 2 107 Melee . | . . . Projectile 2 | . 2 . AOE 107 | . . 107 Terrain Rammed . | . . . Walls Destroyed . | . . . Machines Disabled . | . . . Actions | -11 -10 -10 --------- Run | Yrd Mat Min Total 2561 | 78 2164 319 Wait 396 | . 396 . Move 1956 | 60 1624 272 Hop . | . . . Pick Up 27 | 6 18 3 Fast Attach 12 | 7 5 . Attach 3 | . 1 2 Detach 1 | . 1 . Swap 18 | . 12 6 Drop 16 | . 13 3 Fire 128 | 5 91 32 Melee . | . . . Ram . | . . . Kick . | . . . Crush 4 | . 3 1 Escape Stasis . | . . . Rewire . | . . . Trap . | . . . Miscellaneous . | . . . Route ------- -11/Scrapyard -10/Materials (discovered 5 exits: *Mat x3 / *Min x2) -10/Mines (discovered 3 exits: *Mat x2 / Sub) History --------- Turn | Location | Event 11 | -11/Scrapyard | Discovered new exit (range 15) 115 | -11/Scrapyard | Entered Materials 140 | -10/Materials | Discovered new exit (range 4) 306 | -10/Materials | Build established: Mutant 356 | -10/Materials | Discovered new exit (range 15) 588 | -10/Materials | Discovered new exit (range 5) 765 | -10/Materials | Core integrity fell below 50% 787 | -10/Materials | Destroyed 7 combat bots 880 | -10/Materials | Discovered new exit (range 10) 1399 | -10/Materials | Learned location of 1 exit from Storage 1465 | -10/Materials | Learned 2 Mines zone layouts 1570 | -10/Materials | Loaded intel: 8 terminal locations 1632 | -10/Materials | Learned location of 1 exit from Recycling 1649 | -10/Materials | Learned Recycling recycling unit intel 1754 | -10/Materials | Learned location of 2 exits from Subcaves 1809 | -10/Materials | Learned 4 Subcaves zone layouts 1909 | -10/Materials | Discovered new exit (range 15) 4654 | -10/Materials | Entered Mines 4655 | -10/Mines | Identified exit to Materials 4655 | -10/Mines | Identified exit to Subcaves 4661 | -10/Mines | Met a Derelict bent on vengeance 4753 | -10/Mines | Discovered exit to Materials (range 7) 4936 | -10/Mines | Received a Rocket Launcher from a helpful Derelict 4976 | -10/Mines | Learned Materials stockpile data 5277 | -10/Mines | Found a hidden stash of uninstalled traps 5358 | -10/Mines | Core integrity fell below 20% 5380 | -10/Mines | Found the Drone Emporium 5384 | -10/Mines | Assembled infested the area 5408 | -10/Mines | Destroyed by as-67787 with Assembled Rifle Last Messages --------------- 05394_ Critical hit (Destroy). 05394_ Lgt. Treads destroyed. 05396_ as-41110 destroyed. 05397_ as-14187 destroyed. 05397_ as-64682 destroyed. 05397_ as-12132 destroyed. 05398_ The unstable cave ceiling collapses. 05398_ U-05 Engineer lays Concrete. 05399_ as-75807 destroyed. 05399_ as-67636 destroyed. 05399_ as-81080 destroyed. 05399_ as-70665 destroyed. 05399_ as-22237 destroyed. 05402_ as-19215 destroyed. 05405_ K-01 Serf collects debris. 05406_ The unstable cave ceiling collapses. 05407_ as-11834 destroyed. 05407_ as-36253 destroyed. 05407_ as-21235 destroyed. 05407_ as-31889 destroyed. Map ----- +----------------------------------------------------+ | ??#>#????????????????????????# #?????????## # | | ??? ???#?????????????????????# #??????????## ## # | | ?????????????????????????????# #????###????#### # | | ????????????????????????????## ##??## ####???# # | | ????????????????????????????# ##?# ##??# # | | ????????????????????????????# #?# ##?# # | | ????????????????????????????# #??# ### # | | ????????????????????????????# ##??# # | | ????????????????????????????# #??# ### % % | | ???????????????????????????## ##??# ##?## | | ?????????????????????????### ##???## ##???## # | | ????????????????????????## ####??###??????# ## | | ????????????????????????# & #???????????# #? | | ????????????????????????# & &### #???????????# #? | | ????????????????????????# &##?# #???????????# #? | | ????????????????????????# ##??# #??????????? ? | | ????????????????????????# #???# ########### | | ?????????????????##?????## #???# | | ????????????????##""?????###???######### #### | | ????????????????#" !??????????????##### #??# | | ????????????# ???? ?####??????### #??## | | ??????????? ?? g## ##??#### #???### | | ??????????? "" #?## ####??????# | | ?????????? # ### #?????????? | | ?????????? a ####??????????? | | ??????????a% %% * %@ ###?????????????? | | ?????????? ###???????????????? | | ?????????? #?????????????????? | | ???????????# # # ???????????????? | | ?????????????## # ### # #?????????????? | | ????????????????## ?? ## #?????????????? | | ?????????????????#? # ##? #?????????????? | | ?????????????????? #k ??? #?????????????? | | ????????????????? [ #???#?????????????? | | ???????????????? ## #?????????????????? | | ???????????????? * # #?????????????????? | | ????????????????? ### ####?????????????????? | | ????????????????? ??# #????????????????????? | | ?????????????????? ??? #????????????????????? | | ????????????????????? ??? #????????????????????? | | ??????????????????????????##?????????????????????? | | ?????????????????????????????????????????????????? | | ?????????????????????????????????????????????????? | | ?????????????????????????????????????????????????? | | ?????????????????????????????????????????????????? | | ?????????????????????????????????????????????????? | | ?????????????????????????????????????????????????? | | ?????????????????????????????????????????????????? | | ?????????????????????????????????????????????????? | | ?????????????????????????????????????????????????? | +----------------------------------------------------+ Best States ------------- Heat Dissipation 39 Energy Generation 10 Energy Capacity 250 Matter Stores 300 Matter Capacity 300 Sight Range 16 Terrain Scan Range 16 Terrain Scan Density 10 Evasion (%) 50 Recoil Reduction 2 Item Schematics ----------------- None Robot Schematics ------------------ None Fabricated ------------ Nothing Alien Tech Used ----------------- None Achievements -------------- None Challenges ------------ Unstable Evolution Game ------ Seed IonEnhancedPit Manual? 0 Play Time 00:18:35 Cumulative 255.3 hours Start 2024.08.26 @ 15:38:09 End 2024.08.26 @ 15:56:57 Sessions 1 Manual Loads 0 Difficulty Rogue Special Mode None Game No. 200 Rogue 195 Adventurer 5 Explorer 0 Win Type - Total 4 Types 2/0/2/0/0/0/0/0/0 Lore% 63 Gallery% 82 Achievement% 65 Wizard Run 0 Options --------- Layout 2 ASCII 0 Keyboard 0 Movement Mouse Keybinds 0 Fullscreen 2 Font 24/Smallcaps Map View 50x44 Zoom Use 0% Tactical HUD 1 Map Filters NONE Filters NONE Steam 1 RUN: 659b29a9-e9f1-43ef-80d0-432343e4edad